Cogmind - Beta 11.1 @@@ ROGUE MODE // 2022.05.06 @ 13:52:13 Player: Olga Result: Self-destructed Performance ------------- Evolutions (1) 500 Regions Visited (3) 600 Robots Destroyed (23) 115 Value Destroyed (447) 447 Prototype IDs (0) 0 Alien Tech Used (0) 0 Bonus (0) 0 TOTAL SCORE: 1662 Bonus ------- None Cogmind --------- Core Integrity 329/400 Matter 285/300 Energy 125/125 System Corruption 0% Temperature Cool (4) Movement Rolling (100) Location -9/Materials Parts ------- > --- POWER (1) -------- Light Ion Engine > --- PROPULSION (2) --- Compact Wheel Compact Wheel > --- UTILITY (4) ------ Small Storage Unit Structural Scanner Light Armor Plating > --- WEAPON (2) ------- Light Assault Rifle Light Assault Rifle > --- INVENTORY (8) ---- Light Ion Engine Light Ion Engine Light Treads Light Treads Structural Scanner Improved Terrain Scanner Medium Laser Grenade Launcher Peak State ------------ > --- POWER ------------ Light Ion Engine > --- PROPULSION ------- Compact Wheel Compact Wheel > --- UTILITY ---------- Small Storage Unit Structural Scanner Light Armor Plating Light Armor Plating > --- WEAPON ----------- Light Assault Rifle Light Assault Rifle > --- INVENTORY -------- Light Ion Engine Light Ion Engine Light Treads Light Treads Structural Scanner Improved Terrain Scanner Medium Laser Grenade Launcher [Rating: 10] Favorites ----------- Power Ion Engine Engine Ion Engine Propulsion Light Treads Treads Light Treads Leg Aluminum Leg Wheel Compact Wheel Utility Small Storage Unit Device Structural Scanner Storage Small Storage Unit Protection Light Armor Plating Weapon Light Assault Rifle Energy Gun Medium Laser Ballistic Gun Light Assault Rifle Launcher Grenade Launcher Build | -11 -10 -10 -9 ------- Run | Scr Mat Min Mat Slots Evolved 2 | . . . 2 Power . | . . . . Propulsion . | . . . . Utility 2 | . . . 2 Weapon . | . . . . Parts Attached 20 | 2 5 5 8 Power 2 | . 1 . 1 Engine 2 | . 1 . 1 Core . | . . . . Reactor . | . . . . Propulsion 6 | . 2 2 2 Treads 2 | . . 2 . Leg 2 | . 2 . . Wheel 2 | . . . 2 Hover . | . . . . Flight . | . . . . Utility 5 | 2 1 . 2 Device 3 | 2 1 . . Storage . | . . . . Processor . | . . . . Hackware . | . . . . Protection 2 | . . . 2 Artifact . | . . . . Weapon 7 | . 1 3 3 Energy Gun . | . . . . Energy Cannon . | . . . . Ballistic Gun 6 | . 1 2 3 Ballistic Cannon . | . . . . Launcher 1 | . . 1 . Special Weapon . | . . . . Impact Weapon . | . . . . Slashing Weapon . | . . . . Piercing Weapon . | . . . . Special Melee Weapon . | . . . . Unidentified Prototypes . | . . . . Parts Lost 2 | . 1 . 1 Power . | . . . . Propulsion 1 | . 1 . . Utility 1 | . . . 1 Weapon . | . . . . Highest Loss Streak 1 | . 1 . 1 To Critical Strikes . | . . . . Average Slot Usage (%) 97 | . 98 100 91 Engine 13 | . 14 14 11 Treads 12 | . . 26 2 Leg 9 | . 27 1 . Wheel 4 | . . . 20 Device 13 | . 14 14 11 Storage 13 | . 14 14 11 Protection 3 | . . . 14 Energy Gun 5 | . 17 . . Ballistic Gun 20 | . 10 26 22 Naked Turns . | . . . . Heaviest Build 17 | 13 14 15 17 Greatest Support 40 | 20 20 40 40 Greatest Overweight (x) 3 | . 3 . . Average Overweight (x) . | . . . . Largest Inventory Capacity 8 | 8 8 8 8 Average Capacity 8 | 8 8 8 8 Most Carried 8 | 7 8 8 8 Average Carried 7 | 6 7 7 7 Final Capacity 8 | 8 8 8 8 Final Carried 8 | 7 8 8 8 Class Distribution -------------------- 86% | Mutant 13% | Scavenger-Mutant Dominant Class ---------------- Mutant | -10/Materials Mutant | -10/Mines Scavenger-Mutant | -9/Materials Resources | -11 -10 -10 -9 ----------- Run | Scr Mat Min Mat Matter Collected 507 | 218 77 72 140 Remotely . | . . . . Salvage Created 612 | 84 234 14 280 Parts 40 | 6 12 2 20 Haulers Intercepted . | . . . . Recyclers Shooed . | . . . . Parts Field Recycled . | . . . . Retrieved Matter . | . . . . Parts Self-Destructed . | . . . . Prevented . | . . . . Kills | -11 -10 -10 -9 ------- Run | Scr Mat Min Mat Combat Hostiles Destroyed 19 | . 8 3 8 Guns 16 | . 8 . 8 AOE 3 | . . 3 . Classes Destroyed 7 | 2 2 . 3 Worker 1 | . . . 1 Tunneler 1 | 1 . . . Recycler 1 | 1 . . . Watcher 1 | . . . 1 Swarmer 10 | . 3 3 4 Grunt 8 | . 5 . 3 Sentry 1 | . . . 1 Best Kill Streak 7 | 2 7 3 5 Combat Bots Only 7 | . 7 3 5 Max Kills in Single Turn 3 | 1 1 3 1 Gunslinging . | . . . . Exploded 3 | . . 3 . Melee . | . . . . Uniques/NPCs Destroyed . | . . . . Combat | -11 -10 -10 -9 -------- Run | Scr Mat Min Mat Damage Taken 726 | . 330 57 339 Core 167 | . 96 . 71 Absorbed by Shields . | . . . . Core Remaining (%) 80 | 100 . 61 . Volleys Fired 75 | 3 30 2 40 Largest 2 | 2 2 2 2 Hottest 90 | 90 70 50 40 Shots Fired 139 | 6 49 4 80 Gun 137 | 6 49 2 80 Cannon . | . . . . Launcher 2 | . . 2 . Special . | . . . . Kinetic 112 | . 30 2 80 Thermal 22 | 3 19 . . Explosive 2 | . . 2 . Electromagnetic 3 | 3 . . . Robot Hit Streak 13 | 4 12 1 13 Robot Miss Streak 6 | 1 2 1 6 Penetration Max . | . . . . Secondary Targets 2 | . 2 . . Max Gunslinging Chain 1 | . 1 . . Shots Hit Robots 95 | 4 36 1 54 Core Hits 40 | 3 14 3 20 Critical Kills . | . . . . Critical Parts Destroyed . | . . . . Critical Strikes 3 | . 3 . . Burn 3 | . 3 . . Melee Attacks . | . . . . Impact . | . . . . Slashing . | . . . . Piercing . | . . . . Sneak Attacks . | . . . . Combat Hostiles . | . . . . Follow-up Attacks . | . . . . Damage Inflicted 1001 | 52 371 127 451 Guns 883 | 52 371 9 451 Cannons . | . . . . Explosions 118 | . . 118 . Melee . | . . . . Ramming . | . . . . Kinetic 631 | . 171 9 451 Thermal 225 | 25 200 . . Explosive 118 | . . 118 . Electromagnetic 27 | 27 . . . Impact . | . . . . Slashing . | . . . . Piercing . | . . . . Highest Corruption . | . . . . Average Corruption . | . . . . Corruption Purged . | . . . . Corruption Blocked . | . . . . Overload Shots . | . . . . Overflow Damage . | . . . . Projectiles . | . . . . Explosions . | . . . . Melee . | . . . . Knockbacks . | . . . . Impact . | . . . . Kinetic . | . . . . Secondary . | . . . . Self-Inflicted Damage 49 | . . 49 . Shots 2 | . . 2 . Rammed . | . . . . Targets Rammed . | . . . . Kicked . | . . . . Crushed . | . . . . Highest Temperature 380 | 70 380 10 19 Average Temperature 112 | 40 194 7 8 Received Heat Transfer 261 | . 156 . 105 Effects 3 | . 3 . . Shutdowns 1 | . 1 . . Short Circuit 1 | . 1 . . Damage (minor) 1 | . 1 . . Siege Activations . | . . . . Robots Corrupted . | . . . . Combat Hostiles . | . . . . Parts Fried . | . . . . Impact Corruptions . | . . . . Robots Melted . | . . . . Combat Hostiles . | . . . . Parts Melted 5 | . 5 . . Heat Transferred 888 | 74 814 . . Parts Sabotaged . | . . . . Parts Stolen . | . . . . Parts Stripped . | . . . . Power Chain Reactions . | . . . . Missiles Intercepted . | . . . . Alert | -11 -10 -10 -9 ------- Run | Scr Mat Min Mat Peak Influence 317 | 10 243 233 317 Initial 94 | . 6 94 90 Average 185 | 8 127 231 208 Maximum Alert Level 1 | . 1 1 1 Low Security (%) 32 | 100 61 1 39 Level 1 67 | . 38 98 60 Level 2 . | . . . . Level 3 . | . . . . Level 4 . | . . . . Level 5 . | . . . . High Security . | . . . . Max Security . | . . . . Squads Dispatched 5 | . 2 . 3 Investigation 2 | . 1 . 1 Extermination . | . . . . Reinforcement 3 | . 1 . 2 Assault . | . . . . Garrison . | . . . . Intercept . | . . . . Searches Triggered . | . . . . Construction Impeded . | . . . . Haulers Reinforced . | . . . . Active Scanning Responses . | . . . . Cargo Convoy Interrupts . | . . . . Stealth | -11 -10 -10 -9 --------- Run | Scr Mat Min Mat Distress Signals 3 | . 1 . 2 Communications Jammed . | . . . . Distress Signals . | . . . . Times Spotted 37 | . 13 5 19 Peak Tracking Total 10 | . 10 3 6 Tactical Retreats 1 | . . . 1 Traps | -11 -10 -10 -9 ------- Run | Scr Mat Min Mat Traps Triggered 2 | . 1 . 1 Indirectly . | . . . . Trap Hack Attempts . | . . . . Triggered . | . . . . Disarmed . | . . . . Reprogrammed . | . . . . Reused . | . . . . Traps Extracted . | . . . . Installed . | . . . . Triggered . | . . . . Machines | -11 -10 -10 -9 ---------- Run | Scr Mat Min Mat Machines Disabled . | . . . . Max in Single Turn . | . . . . Machines Sabotaged . | . . . . Garrisons Compromised . | . . . . Overloaded Fab Kills . | . . . . Hacking | -11 -10 -10 -9 --------- Run | Scr Mat Min Mat Machines Accessed 5 | . 4 . 1 Terminals 5 | . 4 . 1 Fabricators . | . . . . Repair Stations . | . . . . Recycling Units . | . . . . Scanalyzers . | . . . . Garrison Access . | . . . . Total Hacks 17 | . 16 . 1 Successful 8 | . 8 . . Failed 9 | . 8 . 1 Catastrophic 1 | . 1 . . Database Lockouts . | . . . . Manual 15 | . 15 . . Terminals 17 | . 16 . 1 Fabricators . | . . . . Repair Stations . | . . . . Recycling Units . | . . . . Scanalyzers . | . . . . Garrison Access . | . . . . Terminal Hacks 4 | . 4 . . Robot Analysis 1 | . 1 . . Branch Access Points 1 | . 1 . . Terminal Index 1 | . 1 . . Recall Investigation 1 | . 1 . . Fabricator Hacks . | . . . . Repair Station Hacks . | . . . . Recycling Unit Hacks . | . . . . Scanalyzer . | . . . . Garrison Access Hacks . | . . . . Unauthorized Hacks 4 | . 4 . . Terminals 4 | . 4 . . Botnet 4 | . 4 . . Fabricators . | . . . . Repair Stations . | . . . . Recycling Units . | . . . . Scanalyzers . | . . . . Garrison Access . | . . . . Data Cores Recovered . | . . . . Used . | . . . . Hacking Detections 4 | . 4 . . Full Trace Events 1 | . 1 . . Feedback Events . | . . . . Feedback Blocked . | . . . . Robot Schematics Acquired . | . . . . Robots Built . | . . . . Authchips . | . . . . Time . | . . . . Total Robot Build Rating . | . . . . Part Schematics Acquired . | . . . . Parts Built . | . . . . Authchips . | . . . . Time . | . . . . Total Part Build Rating . | . . . . Parts Repaired . | . . . . Time . | . . . . Parts Recycled . | . . . . Recycled Matter . | . . . . Retrieved Matter . | . . . . Retrieved Components . | . . . . Parts Scanalyzed . | . . . . Part Schematics Acquired . | . . . . Parts Damaged . | . . . . Bothacking | -11 -10 -10 -9 ------------ Run | Scr Mat Min Mat Used RIF Installer . | . . . . Robots Hacked . | . . . . Non-combat . | . . . . Combat . | . . . . Robot Hacks Applied . | . . . . Relay Couplers Released . | . . . . Fabnet Peak Effective % . | . . . . Robots Rewired . | . . . . Allies Hacked . | . . . . Hacks Repelled . | . . . . Allies | -11 -10 -10 -9 -------- Run | Scr Mat Min Mat Total Allies . | . . . . Largest Group . | . . . . Highest-Rated Group . | . . . . Highest-Rated Ally . | . . . . Total Orders . | . . . . Ally Attacks . | . . . . Total Damage . | . . . . Kills . | . . . . Allies Corrupted . | . . . . Allies Melted . | . . . . Intel | -11 -10 -10 -9 ------- Run | Scr Mat Min Mat Robot Analysis Total 1 | . 1 . . Derelict Logs Recovered 1 | . . 1 . Drone Launches . | . . . . Drone Recoveries . | . . . . Exploration | -11 -10 -10 -9 ------------- Run | Scr Mat Min Mat Turns Passed 929 | 32 292 388 217 Spaces Moved 510 | 16 167 236 91 Core 3 | . 3 . . Treads 239 | . . 228 11 Legs 188 | 16 164 8 . Wheels 80 | . . . 80 Hover . | . . . . Flight . | . . . . Fastest Speed 100 | 120 120 120 100 Average Speed 136 | 120 121 158 107 Slowest Speed 200 | 120 200 160 160 Overloaded Moves . | . . . . Propulsion Burnouts . | . . . . Robots Hopped . | . . . . Cave-ins Triggered . | . . . . Exploration Rate (%) 30 | 3 42 63 13 Regions Visited 3 Branch Regions 1 Pre-discovered Areas . | . . . . Known Exits Taken 1 | . 1 . . Unknown Exits Taken 2 | 1 . 1 . Scrap Searched . | . . . . Spaces Dug . | . . . . Terrain Destroyed 15 | . . 15 . Melee . | . . . . Projectile . | . . . . AOE 15 | . . 15 . Terrain Rammed . | . . . . Walls Destroyed . | . . . . Machines Disabled . | . . . . Actions | -11 -10 -10 -9 --------- Run | Scr Mat Min Mat Total 625 | 21 212 245 147 Wait 8 | . 5 . 3 Move 507 | 15 166 235 91 Hop . | . . . . Pick Up 5 | 1 2 1 1 Fast Attach 4 | 1 2 . 1 Attach 1 | . . . 1 Detach . | . . . . Swap 15 | 1 3 5 6 Drop 10 | . 4 2 4 Fire 75 | 3 30 2 40 Melee . | . . . . Ram . | . . . . Kick . | . . . . Crush . | . . . . Escape Stasis . | . . . . Rewire . | . . . . Trap . | . . . . Miscellaneous . | . . . . Route ------- -11/Scrapyard -10/Materials (discovered 3 exits: *Mat / *Min x2) -10/Mines -9/Materials History --------- Turn | Location | Event 11 | -11/Scrapyard | Discovered new exit (range 3) 33 | -11/Scrapyard | Entered Materials 95 | -10/Materials | Discovered new exit (range 16) 211 | -10/Materials | Destroyed 7 combat bots 244 | -10/Materials | Identified exit to Mines 311 | -10/Materials | Build established: Mutant 325 | -10/Materials | Entered Mines 337 | -10/Mines | Joined a pair of Derelicts in attacking an 0b10 outpost 351 | -10/Mines | Met a Derelict bent on vengeance 491 | -10/Mines | Learned Materials terminal intel 670 | -10/Mines | Discovered new exit (range 8) 713 | -10/Mines | Entered Materials 713 | -9/Materials | Evolved 2 slots: Utility x2 714 | -9/Materials | Loaded intel: 12 terminal locations 930 | -9/Materials | Self-destructed Last Messages --------------- 00804_ S-10 Pest destroyed. 00805_ Acquired 2 matter. 00809_ Acquired 10 matter. 00812_ Dropped Ion Engine. 00812_ Acquired Lgt. Ion Engine. 00814_ Dropped Lgt. Assault Rifle. 00825_ Acquired Lgt. Armor Plating. 00826_ W-16 Scout sends out distress signal. 00835_ W-16 Scout destroyed. 00845_ G-34 Mercenary destroyed. 00851_ Acquired 50 matter. 00851_ Triggered Alarm Trap. 00851_ An alarm sounds. 00851_ ALERT: Alarm triggered, dispatching investigation squad. 00858_ Acquired 8 matter. 00864_ G-34 Mercenary destroyed. 00874_ Acquired 8 matter. 00877_ K-01 Serf collects debris. 00883_ K-01 Serf destroyed. 00918_ Lgt. Armor Plating destroyed. Map ----- +----------------------------------------------------+ | ?????????????????????????????????????????????????? | | ?????????????????????????????????????????????????? | | ?????????????????????????????????????????????????? | | ?????????????????????????????????????????????????? | | ?????????????????????????????????????????????????? | | ?????????????????????????????????????????????????? | | ?????????????????????????????????????????????????? | | ?????????????????????????????????????????????????? | | ?????????????????????????????????????????????????? | | ?????????????????????????????????????????????????? | | ?????????????????????????????????????????????????? | | ?????????????????????????????????????????????????? | | ?????????????????????????????????????????????????? | | ??????????????????????????"T"????????????????????? | | ??????????????????????????"""????????????????????? | | ?????????????????????????????????????????????????? | | ?????????????????????????????????????????????????? | | ?????????????????????????????????????????????????? | | ???????????????? ####### ##?????????????????? | | ????????????????#############+###????????????????? | | ????????????????## !/ ##???????"""??????? | | ???????????????? # % ##### ???"T???????? | | ?????????????""? # / """ """ ##### ???"""??????? | | ?????????????"T? # g""""""""" + ????????????? | | ?????????????""? # g """"" ##????????????????? | | ???????????????? # @ g ##????????????????? | | ???????????????? #######+########????????????????? | | ??????????????? ###### #######????????????????? | | ?????????## ???######## ##?????????????????????? | | ?????????## ##?????????????????????? | | ?????????############## ##?????????????????????? | | ??????????############# ##?????????????????????? | | ??????????##] #### ##?????????????????????? | | ??????????## #### ##?????????????????????? | | ??????????## ##?????????????????????? | | ??????????## ##?????????????????????? | | ??????????## ##?????????????????????? | | ??????????## #########?????????????????????? | | ??????????## #########?????????????????????? | | ??????????#### ####??????##############????????? | | ??????????#### ####????################????????? | | ????????????## ##??????## """ ##????????? | | ????????????## =%##??????## """ "T" ##????????? | | ????????????## !##??????## """ ##????????? | | ???????????### ###?????????""" ##????????? | | ???????????### ########## ##????????? | | ???????????## =###############+#######????????? | | ???????????## =%*% ##????????? | | ???????????## T [[=%! ##????????? | | ???????????## !%*[[[ ##????????? | +----------------------------------------------------+ Best States ------------- Heat Dissipation 28 Energy Generation 10 Energy Capacity 250 Matter Stores 300 Matter Capacity 300 Sight Range 16 Terrain Scan Range 16 Terrain Scan Density 10 Armor Coverage 300 Evasion (%) 55 Recoil Reduction 2 Item Schematics ----------------- None Robot Schematics ------------------ None Fabricated ------------ Nothing Alien Tech Used ----------------- None Achievements -------------- None Challenges ------------ None Game ------ Seed RagnarokAlertRedirector Manual? 0 Play Time 00:10:40 Cumulative 205.9 hours Start 2022.05.06 @ 13:24:57 End 2022.05.06 @ 13:52:13 Sessions 1 Manual Loads 0 Difficulty Rogue Special Mode None Game No. 311 Rogue 308 Adventurer 0 Explorer 3 Win Type - Total 8 Types 8/0/0/0/0/0/0/0/0 Lore% 68 Gallery% 69 Achievement% 59 Wizard Run 0 Options --------- ASCII 1 Keyboard 0 Movement Vi Keybinds 0 Fullscreen 1 Font 18/SmallcapsGlow Map View 76x50 Tactical HUD 1 Map Filters NONE Filters NONE Steam 1 RUN: c0ef5cdc-ea60-43c5-93c2-7a9a2e2f2c60